Cogmind - Beta 11.1 @@@ ROGUE MODE // 2022.04.30 @ 09:53:23 Player: ktur Result: Destroyed by YI-UF0 with YI-UF0's Doublenader Performance ------------- Evolutions (0) 0 Regions Visited (2) 400 Robots Destroyed (20) 100 Value Destroyed (542) 542 Prototype IDs (2) 40 Alien Tech Used (0) 0 Bonus (0) 0 TOTAL SCORE: 1082 Bonus ------- None Cogmind --------- Core Integrity 0/250 Matter 297/300 Energy 250/250 System Corruption 0% Temperature Cool (0) Movement Treading (240) Ox1 Location -10/Mines Parts ------- > --- POWER (1) -------- Ion Engine > --- PROPULSION (2) --- Light Treads > --- UTILITY (2) ------ Large Storage Unit > --- WEAPON (2) ------- Assault Rifle Light Assault Rifle > --- INVENTORY (15) --- Light Nuclear Core Light Treads Light Treads Hover Unit Medium Storage Unit High-capacity Matter Pod (200) Sensor Array Targeting Computer Light Armor Plating Light Armor Plating Hacking Suite Hacking Suite Small Laser Light Assault Rifle Grenade Launcher Peak State ------------ > --- POWER ------------ Ion Engine > --- PROPULSION ------- Light Treads Light Treads > --- UTILITY ---------- Large Storage Unit Light Armor Plating > --- WEAPON ----------- Assault Rifle Light Assault Rifle > --- INVENTORY -------- Light Nuclear Core Light Treads Light Treads Hover Unit Medium Storage Unit High-capacity Matter Pod Sensor Array Targeting Computer Light Armor Plating Light Armor Plating Light Armor Plating Hacking Suite Hacking Suite Small Laser Grenade Launcher [Rating: 9] Favorites ----------- Power Ion Engine Engine Ion Engine Propulsion Light Treads Treads Light Treads Utility Large Storage Unit Storage Large Storage Unit Protection Light Armor Plating Weapon Light Assault Rifle Ballistic Gun Light Assault Rifle Launcher Grenade Launcher Build | -11 -10 -10 ------- Run | Scr Mat Min Slots Evolved . | . . . Power . | . . . Propulsion . | . . . Utility . | . . . Weapon . | . . . Parts Attached 16 | 6 9 1 Power 1 | 1 . . Engine 1 | 1 . . Core . | . . . Reactor . | . . . Propulsion 2 | 2 . . Treads 2 | 2 . . Leg . | . . . Wheel . | . . . Hover . | . . . Flight . | . . . Utility 4 | 1 2 1 Device . | . . . Storage 2 | 1 1 . Processor . | . . . Hackware . | . . . Protection 2 | . 1 1 Artifact . | . . . Weapon 9 | 2 7 . Energy Gun . | . . . Energy Cannon . | . . . Ballistic Gun 6 | 2 4 . Ballistic Cannon . | . . . Launcher 3 | . 3 . Special Weapon . | . . . Impact Weapon . | . . . Slashing Weapon . | . . . Piercing Weapon . | . . . Special Melee Weapon . | . . . Unidentified Prototypes . | . . . Parts Lost 3 | . . 3 Power . | . . . Propulsion 1 | . . 1 Utility 2 | . . 2 Weapon . | . . . Highest Loss Streak 2 | . . 2 To Critical Strikes . | . . . Average Slot Usage (%) 97 | . 96 99 Engine 14 | . 14 14 Treads 28 | . 28 28 Storage 14 | . 14 14 Protection 11 | . 11 13 Ballistic Gun 27 | . 27 28 Naked Turns . | . . . Heaviest Build 31 | 13 31 31 Greatest Support 40 | 40 40 40 Greatest Overweight (x) . | . . . Average Overweight (x) . | . . . Largest Inventory Capacity 15 | 8 15 15 Average Capacity 14 | 7 14 15 Most Carried 15 | 6 15 15 Average Carried 13 | 3 13 14 Final Capacity 15 | 8 15 15 Final Carried 15 | 6 15 15 Class Distribution -------------------- 100% | Mutant Dominant Class ---------------- Mutant | -10/Materials Mutant | -10/Mines Resources | -11 -10 -10 ----------- Run | Scr Mat Min Matter Collected 1087 | 233 727 127 Remotely . | . . . Salvage Created 697 | . 570 127 Parts 45 | . 31 14 Haulers Intercepted 2 | . 2 . Recyclers Shooed . | . . . Parts Field Recycled . | . . . Retrieved Matter . | . . . Parts Self-Destructed . | . . . Prevented . | . . . Kills | -11 -10 -10 ------- Run | Scr Mat Min Combat Hostiles Destroyed 15 | . 10 5 Guns 15 | . 10 5 Classes Destroyed 4 | . 3 1 Hauler 2 | . 2 . Operator 3 | . 3 . Swarmer 3 | . . 3 Grunt 12 | . 10 2 Best Kill Streak 3 | . 3 3 Combat Bots Only 3 | . 2 3 Max Kills in Single Turn 1 | . 1 1 Gunslinging . | . . . Exploded . | . . . Melee . | . . . Uniques/NPCs Destroyed . | . . . Combat | -11 -10 -10 -------- Run | Scr Mat Min Damage Taken 929 | . 429 500 Core 270 | . 128 142 Absorbed by Shields . | . . . Regen/Repaired (Parts) 66 | . 66 . Core Remaining (%) 100 | 100 . . Volleys Fired 83 | . 58 25 Largest 2 | . 2 2 Hottest 40 | . 40 40 Shots Fired 149 | . 99 50 Gun 144 | . 94 50 Cannon . | . . . Launcher 5 | . 5 . Special . | . . . Kinetic 144 | . 94 50 Thermal . | . . . Explosive 5 | . 5 . Electromagnetic . | . . . Robot Hit Streak 18 | . 11 18 Robot Miss Streak 4 | . 4 3 Penetration Max . | . . . Secondary Targets 1 | . . 1 Max Gunslinging Chain 1 | . . 1 Shots Hit Robots 102 | . 69 33 Core Hits 40 | . 30 10 Critical Kills . | . . . Critical Parts Destroyed 1 | . . 1 Critical Strikes 1 | . . 1 Destroy 1 | . . 1 Melee Attacks . | . . . Impact . | . . . Slashing . | . . . Piercing . | . . . Sneak Attacks . | . . . Combat Hostiles . | . . . Follow-up Attacks . | . . . Damage Inflicted 1098 | . 759 339 Guns 1083 | . 744 339 Cannons . | . . . Explosions . | . . . Melee . | . . . Ramming 15 | . 15 . Kinetic 1083 | . 744 339 Thermal . | . . . Explosive . | . . . Electromagnetic . | . . . Impact . | . . . Slashing . | . . . Piercing . | . . . Highest Corruption . | . . . Average Corruption . | . . . Corruption Purged . | . . . Corruption Blocked . | . . . Overload Shots . | . . . Overflow Damage . | . . . Projectiles . | . . . Explosions . | . . . Melee . | . . . Knockbacks . | . . . Impact . | . . . Kinetic . | . . . Secondary . | . . . Self-Inflicted Damage . | . . . Shots . | . . . Rammed 2 | . 2 . Targets Rammed 2 | . 2 . Kicked . | . . . Crushed . | . . . Highest Temperature 53 | . 37 53 Average Temperature 13 | . 9 18 Received Heat Transfer 348 | . 228 120 Siege Activations . | . . . Robots Corrupted . | . . . Combat Hostiles . | . . . Parts Fried . | . . . Impact Corruptions . | . . . Robots Melted . | . . . Combat Hostiles . | . . . Parts Melted . | . . . Heat Transferred . | . . . Parts Sabotaged . | . . . Parts Stolen . | . . . Parts Stripped . | . . . Power Chain Reactions . | . . . Missiles Intercepted . | . . . Alert | -11 -10 -10 ------- Run | Scr Mat Min Peak Influence 223 | . 223 192 Initial 37 | . . 37 Average 83 | . 97 63 Maximum Alert Level 1 | . 1 . Low Security (%) 93 | 100 91 100 Level 1 6 | . 8 . Level 2 . | . . . Level 3 . | . . . Level 4 . | . . . Level 5 . | . . . High Security . | . . . Max Security . | . . . Squads Dispatched 2 | . 2 . Investigation . | . . . Extermination . | . . . Reinforcement 2 | . 2 . Assault . | . . . Garrison . | . . . Intercept . | . . . Searches Triggered . | . . . Construction Impeded . | . . . Haulers Reinforced . | . . . Active Scanning Responses . | . . . Cargo Convoy Interrupts . | . . . Stealth | -11 -10 -10 --------- Run | Scr Mat Min Distress Signals 2 | . 2 . Communications Jammed . | . . . Distress Signals . | . . . Times Spotted 34 | . 26 8 Peak Tracking Total 4 | . 4 3 Tactical Retreats 2 | . . 2 Traps | -11 -10 -10 ------- Run | Scr Mat Min Traps Triggered 1 | . 1 . Indirectly . | . . . Trap Hack Attempts . | . . . Triggered . | . . . Disarmed . | . . . Reprogrammed . | . . . Reused . | . . . Traps Extracted . | . . . Installed . | . . . Triggered . | . . . Machines | -11 -10 -10 ---------- Run | Scr Mat Min Machines Disabled . | . . . Max in Single Turn . | . . . Machines Sabotaged . | . . . Garrisons Compromised . | . . . Overloaded Fab Kills . | . . . Hacking | -11 -10 -10 --------- Run | Scr Mat Min Machines Accessed 9 | . 9 . Terminals 6 | . 6 . Fabricators . | . . . Repair Stations 1 | . 1 . Recycling Units 2 | . 2 . Scanalyzers . | . . . Garrison Access . | . . . Total Hacks 29 | . 29 . Successful 17 | . 17 . Failed 11 | . 11 . Catastrophic . | . . . Database Lockouts 1 | . 1 . Manual 15 | . 15 . Terminals 23 | . 23 . Fabricators . | . . . Repair Stations 2 | . 2 . Recycling Units 4 | . 4 . Scanalyzers . | . . . Garrison Access . | . . . Terminal Hacks 10 | . 10 . Part Schematic 1 | . 1 . Robot Analysis 2 | . 2 . Prototype ID Bank 1 | . 1 . Scanalyzer Index 1 | . 1 . Alert Level 2 | . 2 . Locate Traps 2 | . 2 . Hauler Manifests 1 | . 1 . Fabricator Hacks . | . . . Repair Station Hacks 2 | . 2 . Scan Component 1 | . 1 . Repair 1 | . 1 . Recycling Unit Hacks 2 | . 2 . Retrieve Components 2 | . 2 . Scanalyzer . | . . . Garrison Access Hacks . | . . . Unauthorized Hacks 3 | . 3 . Terminals 3 | . 3 . Botnet 2 | . 2 . Operators 1 | . 1 . Fabricators . | . . . Repair Stations . | . . . Recycling Units . | . . . Scanalyzers . | . . . Garrison Access . | . . . Data Cores Recovered 1 | . 1 . Used 1 | . 1 . Hacking Detections 8 | . 8 . Full Trace Events . | . . . Feedback Events . | . . . Feedback Blocked . | . . . Robot Schematics Acquired . | . . . Robots Built . | . . . Authchips . | . . . Time . | . . . Total Robot Build Rating . | . . . Part Schematics Acquired 1 | . 1 . Parts Built . | . . . Authchips . | . . . Time . | . . . Total Part Build Rating . | . . . Parts Repaired 1 | . 1 . Time 26 | . 26 . Parts Recycled . | . . . Recycled Matter . | . . . Retrieved Matter . | . . . Retrieved Components 11 | . 11 . Parts Scanalyzed . | . . . Part Schematics Acquired . | . . . Parts Damaged . | . . . Bothacking | -11 -10 -10 ------------ Run | Scr Mat Min Used RIF Installer . | . . . Robots Hacked . | . . . Non-combat . | . . . Combat . | . . . Robot Hacks Applied . | . . . Relay Couplers Released . | . . . Fabnet Peak Effective % . | . . . Robots Rewired . | . . . Allies Hacked . | . . . Hacks Repelled . | . . . Allies | -11 -10 -10 -------- Run | Scr Mat Min Total Allies . | . . . Largest Group . | . . . Highest-Rated Group . | . . . Highest-Rated Ally . | . . . Total Orders . | . . . Ally Attacks . | . . . Total Damage . | . . . Kills . | . . . Allies Corrupted . | . . . Allies Melted . | . . . Intel | -11 -10 -10 ------- Run | Scr Mat Min Robot Analysis Total 2 | . 2 . Derelict Logs Recovered 1 | . . 1 Drone Launches . | . . . Drone Recoveries . | . . . Exploration | -11 -10 -10 ------------- Run | Scr Mat Min Turns Passed 2013 | 89 1391 533 Spaces Moved 1043 | 54 707 282 Core 10 | 10 . . Treads 1033 | 44 707 282 Legs . | . . . Wheels . | . . . Hover . | . . . Flight . | . . . Fastest Speed 50 | 50 160 160 Average Speed 158 | 139 160 160 Slowest Speed 160 | 160 160 160 Overloaded Moves . | . . . Propulsion Burnouts . | . . . Robots Hopped . | . . . Cave-ins Triggered . | . . . Exploration Rate (%) 55 | 4 95 68 Regions Visited 2 Branch Regions 1 Pre-discovered Areas . | . . . Known Exits Taken . | . . . Unknown Exits Taken 2 | 1 1 . Scrap Searched 1 | . . 1 Spaces Dug 9 | . 9 . Terrain Destroyed 28 | . 28 . Melee . | . . . Projectile . | . . . AOE 28 | . 28 . Terrain Rammed . | . . . Walls Destroyed . | . . . Machines Disabled . | . . . Actions | -11 -10 -10 --------- Run | Scr Mat Min Total 1260 | 65 876 319 Wait 85 | . 75 10 Move 1041 | 53 706 282 Hop . | . . . Pick Up 24 | 6 17 1 Fast Attach 9 | 6 3 . Attach 1 | . . 1 Detach . | . . . Swap 6 | . 6 . Drop 9 | . 9 . Fire 83 | . 58 25 Melee . | . . . Ram . | . . . Kick . | . . . Crush 2 | . 2 . Escape Stasis . | . . . Rewire . | . . . Trap . | . . . Miscellaneous . | . . . Route ------- -11/Scrapyard -10/Materials (discovered 4 exits: [*Mat x3] / [*Min]) -10/Mines (discovered 1 exit: [*Mat]) History --------- Turn | Location | Event 38 | -11/Scrapyard | Discovered new exit (range 16) 90 | -11/Scrapyard | Entered Materials 233 | -10/Materials | Discovered new exit (range 6) 310 | -10/Materials | Build established: Mutant 657 | -10/Materials | Central database locked down 771 | -10/Materials | Discovered new exit (range 10) 822 | -10/Materials | Repaired Assault Rifle 1090 | -10/Materials | Discovered new exit (range 10) 1139 | -10/Materials | Core integrity fell below 50% 1238 | -10/Materials | Discovered new exit (range 16) 1481 | -10/Materials | Entered Mines 1669 | -10/Mines | Discovered new exit (range 14) 1725 | -10/Mines | Learned Materials non-interactive machine intel 2013 | -10/Mines | Core integrity fell below 20% 2014 | -10/Mines | Destroyed by YI-UF0 with YI-UF0's Doublenader Last Messages --------------- 01809_ Acquired 43 matter. 01846_ G-34 Mercenary suffers critical hit (Destroy). 01846_ Destroyed Ion Engine. 01849_ K-01 Serf collects debris. 01854_ G-34 Mercenary destroyed. 01857_ Acquired 24 matter. 01857_ K-01 Serf collects debris. 01987_ U-05 Engineer lays Concrete. 01999_ U-05 Engineer builds a Wall. 02002_ T-07 Excavator destroyed. 02002_ U-05 Engineer lays Concrete. 02003_ The unstable cave ceiling collapses. 02003_ U-05 Engineer lays Concrete. 02008_ U-05 Engineer builds a Wall. 02008_ Lgt. Armor Plating destroyed. 02010_ The unstable cave ceiling collapses. 02012_ U-05 Engineer lays Concrete. 02013_ The unstable cave ceiling collapses. 02013_ U-05 Engineer lays Concrete. 02014_ Lgt. Treads destroyed. Map ----- +----------------------------------------------------+ | ??????????????????????????????????????????????? | | ??????????????????????????????????????????????? | | ??????????????????????????????????????????????? | | ??????????????????????????????????????????????? | | ??????????????????????????????????????????????? | | ??????????????????????????????????????????????? | | ??????????????????????????????????????????????? | | ??????????????????????????????????????????????? | | ??????????????????????????????????????????????? | | ??????????????????????????????????????????????? | | ???###????????????????????????????????????????? | | ?? ##??????????????????????????????????? ???? | | # #?????????????????????????????????? ???? | | #?????????????????????????????????? ???? | | #?????????????????????????????????? ????? | | ##????????????????????????????????# ?##??? | | ###???????????????????????????????? #??? | | ##?????????????????????????????#### # #??? | | #?????????????????????????????## # # ##??? | | #??????????# ????????????????# # ##?? | | #????????? ???###?####?### # #?? | | ##????????# ### ## ### = #?? | | ##?????????# |!u # =% | #?? | | ???????????# =%= * ! [ #??? | | ????????????# * #??? | | ####????????# @ ####??? | | ##????????# # #????? | | #??????# # ##????? | | #?????????# ### ## g #?????? | | #???????????????### # ##??# ###??? | | ####??????????????########## ##???? # #??? | | #????????????????? #??????# #?????# ##?? | | ?####?????????????# #??????# #??????! = #?? | | ## ##????????????# ##?????# #?????? #|!= ##? | | # ##??????????## ##????# #?????? ##! ## | | ##?????????# ##???# #??????## # | | ########### ##??# ######## # | | ## ##?# # | | ############# #?? | | ### ##?????????## #?? | | ####?## ######?????# ##?? | | ### ##?????# ##????# ###??? | | ??# #??????# ###### #????? | | ??# #?????## #????? | | ??## #??????### ########????? | | ???## #######????????## #???????????? | | ????####???????????????# #???????????? | | ??????????????????????# ##???????????? | | ??????????????????????# ##????????????? | | ??????????????????????## ##?????????????? | +----------------------------------------------------+ Best States ------------- Heat Dissipation 25 Energy Generation 10 Energy Capacity 250 Matter Stores 300 Matter Capacity 300 Sight Range 16 Terrain Scan Density 10 Armor Coverage 150 Evasion (%) 50 Recoil Reduction 2 Item Schematics ----------------- Hcp. Storage Unit | -10/Materials | Hacked Robot Schematics ------------------ None Fabricated ------------ Nothing Alien Tech Used ----------------- None Achievements -------------- None Challenges ------------ None Game ------ Seed DispersionGammaReactor Manual? 0 Play Time 00:10:15 Cumulative 370.9 hours Start 2022.04.30 @ 09:42:27 End 2022.04.30 @ 09:53:23 Sessions 1 Manual Loads 0 Difficulty Rogue Special Mode None Game No. 381 Rogue 381 Adventurer 0 Explorer 0 Win Type - Total 20 Types 12/2/3/2/0/0/0/1/0 Lore% 91 Gallery% 88 Achievement% 75 Wizard Run 0 Options --------- ASCII 0 Keyboard 0 Movement Arrows Keybinds 0 Fullscreen 1 Font 18/Smallcaps Map View 76x50 Tactical HUD 1 Map Filters NONE Filters NONE Steam 1 RUN: ee400862-867f-4d02-b99f-3b8ac065c538